bitfinex/quotes_SOLUSD_20260224
["timestamp","ask_amount","ask_price","bid_price","bid_amount"]
[1771895886965,52.52931411,76.148,76.022,256.50469596]
[1771895886966,308.54066822,76.165,76.071,0.90571904]
[1771895887256,3.69383402,76.162,76.091,0.90571904]
[1771895887458,40.36856282,76.12,76.091,0.90571904]
[1771895887628,40.36856282,76.14,76.101,0.90571904]
[1771895887829,40.36856282,76.13,76.101,0.90571904]
[1771895888031,40.36856282,76.16,76.111,0.90571904]
[1771895888256,45.9426111,76.182,76.086,32.85755592]
[1771895888430,3.69383402,76.097,76.027,32.8830547]
[1771895888635,6.79622876,76.175,76.04,40.36856282]
[1771895888843,40.36856282,76.12,76.03,3.69383402]
[1771895889046,40.36856282,76.1,76.06,40.36856282]
[1771895889254,40.36856282,76.11,76.07,40.36856282]
[1771895889437,0.8946519,76.112,76.07,40.36856282]
[1771895889640,0.8946519,76.112,76.032,5.64518502]
[1771895889641,0.8946519,76.13,76.047,0.14216157]
[1771895889838,40.36856282,76.13,76.09,40.36856282]
[1771895890035,40.36856282,76.13,76.056,5.36086188]
[1771895890036,41.26321472,76.12,76.08,40.36856282]
[1771895890243,13.13559878,76.129,76.051,46.02174855]
[1771895890244,40.36856282,76.1,76.051,46.02174855]
[1771895890441,40.36856282,76.12,76.08,40.36856282]
[1771895890848,40.36856282,76.12,76.09,40.36856282]
[1771895891152,40.36856282,76.1,76.06,40.36856282]
[1771895891353,0.8946519,76.145,76.09,40.36856282]
[1771895891554,40.36856282,76.12,76.08,40.36856282]
[1771895891740,40.36856282,76.13,76.09,40.36856282]
[1771895892053,40.56856282,76.19,76.122,0.63629074]
[1771895892255,40.56856282,76.19,76.121,203.62317887]
[1771895892256,0.8946519,76.189,76.123,6.28147576]
[1771895892461,40.36856282,76.18,76.14,40.36856282]
[1771895892842,40.36856282,76.17,76.13,40.36856282]
[1771895893151,0.8946519,76.162,76.11,40.36856282]
[1771895893354,0.8946519,76.162,76.107,52.5575834]
[1771895893355,40.36856282,76.16,76.12,40.36856282]
[1771895893656,45.93839005,76.189,76.111,0.63629074]
[1771895893657,40.36856282,76.15,76.111,0.63629074]
[1771895893867,0.2,76.19,76.14,40.36856282]
[1771895894051,40.56856282,76.19,76.15,40.36856282]
[1771895894238,0.8946519,76.243,76.181,0.63629074]
[1771895894559,40.36856282,76.23,76.19,40.36856282]
[1771895894751,0.8946519,76.243,76.2,40.36856282]
[1771895894941,40.36856282,76.26,76.22,40.36856282]
[1771895895466,13.1118308,76.267,76.22,40.36856282]
[1771895895641,0.8946519,76.273,76.24,40.36856282]
[1771895895956,13.10804965,76.289,76.241,13.11630225]
[1771895896158,0.8946519,76.307,76.251,0.63629074]
[1771895896341,52.3821339,76.362,76.27,40.36856282]
[1771895896342,40.36856282,76.31,76.27,40.36856282]
[1771895896539,0.8946519,76.39,76.3,40.36856282]
[1771895896739,40.36856282,76.36,76.32,40.36856282]
[1771895896950,0.8946519,76.358,76.29,40.36856282]
[1771895897257,40.36856282,76.36,76.311,0.63629074]
[1771895897442,40.36856282,76.35,76.311,0.63629074]
[1771895897642,40.36856282,76.34,76.3,40.36856282]
[1771895897837,0.8946519,76.364,76.277,5.36086188]
[1771895897838,40.36856282,76.36,76.31,40.36856282]
[1771895898044,40.36856282,76.36,76.32,40.36856282]
[1771895898258,40.36856282,76.39,76.35,40.36856282]
[1771895898441,40.36856282,76.41,76.36,40.36856282]
[1771895898644,40.36856282,76.38,76.34,40.36856282]
[1771895898840,40.36856282,76.4,76.36,40.36856282]
[1771895899039,0.49830968,76.428,76.37,40.36856282]
[1771895899251,40.36856282,76.41,76.37,40.36856282]
[1771895899543,18.59840331,76.429,76.368,0.28432314]
[1771895899754,18.59840331,76.429,76.41,40.36856282]
[1771895900062,0.5,76.479,76.421,45.79892961]
[1771895900255,40.86856282,76.47,76.43,40.36856282]
[1771895900449,52.28325564,76.507,76.421,13.08540846]
[1771895900450,0.5,76.49,76.45,40.36856282]
[1771895900653,52.26790198,76.529,76.47,40.36856282]
[1771895900654,0.5,76.529,76.47,40.36856282]
[1771895900843,0.5,76.529,76.48,40.36856282]
[1771895901045,0.5,76.543,76.47,40.36856282]
[1771895901361,0.5,76.529,76.49,40.36856282]
[1771895901661,52.2480194,76.558,76.434,3.69383402]
[1771895901662,0.5,76.548,76.5,40.36856282]
[1771895901874,0.5,76.53,76.49,40.36856282]
[1771895902062,13.06711269,76.528,76.48,40.36856282]
[1771895902366,13.06711269,76.528,76.448,5.36086188]
[1771895902367,45.69369557,76.597,76.52,40.36856282]
[1771895902541,52.20016705,76.629,76.481,320.34099969]
[1771895902542,0.5,76.599,76.56,40.36856282]
[1771895902744,0.5,76.599,76.57,40.36856282]
[1771895903240,40.36856282,76.61,76.551,0.46609737]
[1771895903441,40.36856282,76.58,76.53,40.36856282]
[1771895903852,45.68534544,76.611,76.55,40.36856282]
[1771895904063,40.36856282,76.59,76.55,40.36856282]
[1771895904262,52.1732615,76.668,76.555,0.46609737]
[1771895904465,40.36856282,76.6,76.543,13.06440949]
[1771895904656,52.18541683,76.65,76.57,40.36856282]
[1771895904861,13.05295584,76.611,76.57,40.36856282]
[1771895905078,40.36856282,76.6,76.56,40.36856282]
[1771895905255,117.47660256,76.611,76.497,0.46609737]
[1771895905256,0.45973051,76.569,76.497,0.46609737]
[1771895905564,40.36856282,76.55,76.5,40.36856282]
[1771895905861,0.45973051,76.579,76.53,40.36856282]
[1771895906058,40.36856282,76.57,76.53,40.36856282]
[1771895906241,0.45973051,76.559,76.49,40.36856282]
[1771895906447,40.36856282,76.58,76.511,0.46609737]
[1771895906660,0.45973051,76.619,76.57,40.36856282]
[1771895906965,0.45973051,76.579,76.53,40.36856282]
[1771895907147,0.45973051,76.599,76.55,40.36856282]
[1771895907344,40.36856282,76.62,76.57,40.36856282]
[1771895907548,40.36856282,76.61,76.57,40.36856282]
[1771895907754,40.36856282,76.62,76.57,40.36856282]
[1771895907975,13.05295584,76.611,76.561,0.46609737]
[1771895908152,13.05046143,76.626,76.561,0.46609737]
[1771895908349,40.36856282,76.63,76.59,40.36856282]
[1771895908657,0.45973051,76.635,76.59,40.36856282]
[1771895908860,40.36856282,76.61,76.562,65.30654893]
[1771895909058,13.04872282,76.636,76.59,40.36856282]
[1771895909371,13.04872282,76.636,76.563,0.28432314]
[1771895909372,13.54172046,76.677,76.61,40.36856282]
[1771895909552,0.2,76.68,76.65,40.36856282]
[1771895909746,0.2,76.68,76.594,5.36086188]
[1771895909747,0.5,76.659,76.61,40.36856282]
[1771895909959,0.5,76.659,76.562,333.06339957]
[1771895909960,0.5,76.679,76.63,40.36856282]
[1771895910281,0.5,76.679,76.562,489.79911701]
[1771895910282,0.2,76.68,76.611,3.69383402]
[1771895910569,0.2,76.68,76.609,13.05329661]
[1771895910570,0.2,76.68,76.621,0.28432314]
[1771895910778,0.5,76.715,76.68,40.36856282]
[1771895911269,40.36856282,76.75,76.71,40.36856282]
[1771895911469,0.5,76.77,76.73,40.36856282]
[1771895911678,0.5,76.769,76.73,40.36856282]
[1771895911893,0.5,76.769,76.679,3.69383402]
[1771895912176,40.36856282,76.71,76.671,13.04274106]
[1771895912354,40.36856282,76.73,76.69,40.36856282]
[1771895912549,52.10829137,76.764,76.671,13.04274106]
[1771895912550,0.2449541,76.771,76.72,40.36856282]
[1771895912784,40.36856282,76.75,76.671,254.33345067]
[1771895912950,0.5,76.769,76.72,40.36856282]
[1771895913152,97.69441186,76.77,76.676,5.36086188]
[1771895913356,40.36856282,76.71,76.671,13.04274106]
[1771895913667,40.36856282,76.72,76.67,40.36856282]
[1771895913853,0.5,76.739,76.69,40.36856282]
[1771895914059,40.36856282,76.73,76.69,40.36856282]
[1771895914254,0.5,76.719,76.664,0.14216157]
[1771895914564,0.5,76.719,76.661,52.17770969]
[1771895914565,0.5,76.719,76.67,40.36856282]
[1771895914759,40.36856282,76.71,76.67,40.36856282]
[1771895914962,40.36856282,76.7,76.665,45.65316637]
[1771895915274,39.74325925,76.7,76.665,45.65316637]
[1771895915488,39.74325925,76.69,76.651,13.04614421]
[1771895915655,39.74325925,76.69,76.651,65.23072105]
[1771895915856,0.5,76.711,76.67,39.74325925]
[1771895916066,39.74325925,76.7,76.651,45.66150474]
[1771895916784,3.69383402,76.736,76.651,45.66150474]
[1771895916785,39.74325925,76.71,76.67,39.74325925]
[1771895917082,39.74325925,76.72,76.68,39.74325925]
[1771895917252,39.74325925,76.75,76.71,39.74325925]
[1771895917565,39.74325925,76.75,76.675,3.69383402]
[1771895917566,1e-08,76.771,76.74,39.74325925]
[1771895917763,39.74325925,76.79,76.722,0.46609737]
[1771895917981,0.45973051,76.809,76.76,39.74325925]
[1771895918187,58.3484304,76.82,76.78,39.74325925]
[1771895918490,58.3484304,76.82,76.79,39.74325925]
[1771895918491,18.60517115,76.82,76.79,39.74325925]
[1771895918862,18.60517115,76.82,76.8,39.74325925]
[1771895919079,39.74325925,76.86,76.81,39.74325925]
[1771895919374,39.74325925,76.85,76.8,39.74325925]
[1771895919581,0.45973051,76.859,76.81,39.74325925]
[1771895919760,0.45973051,76.859,76.774,5.36086188]
[1771895919761,39.74325925,76.83,76.78,39.74325925]
[1771895919956,39.74325925,76.82,76.78,39.74325925]
[1771895920160,0.45973051,76.829,76.753,5.82695925]
[1771895920161,39.74325925,76.81,76.77,39.74325925]
[1771895920358,39.74325925,76.84,76.79,39.74325925]
[1771895920776,39.74325925,76.84,76.771,97.69313932]
[1771895920777,52.75223544,76.87,76.82,39.74325925]
[1771895921084,0.45973051,76.859,76.81,39.74325925]
[1771895921264,0.45973051,76.859,76.8,39.74325925]
[1771895921656,0.45973051,76.859,76.782,0.28432314]
[1771895921977,0.45973051,76.882,76.83,39.74325925]
[1771895922181,39.74325925,76.91,76.86,39.74325925]
[1771895922365,0.45973051,76.908,76.87,39.74325925]
[1771895922558,0.45973051,76.908,76.834,5.36086188]
[1771895922559,0.45973051,76.889,76.84,39.74325925]
[1771895922765,39.74325925,76.88,76.827,13.0162573]
[1771895922983,0.45973051,76.896,76.85,39.74325925]
[1771895923158,13.00237943,76.909,76.87,39.74325925]
[1771895923357,12.99905779,76.929,76.89,39.74325925]
[1771895923561,12.99905779,76.929,76.855,0.28432314]
[1771895923562,0.45973051,76.928,76.88,39.74325925]
[1771895923777,0.45973051,76.899,76.85,39.74325925]
[1771895923986,0.2449541,76.93,76.89,39.74325925]
[1771895924168,0.45973051,76.928,76.87,39.74325925]
[1771895924364,0.45973051,76.944,76.91,39.74325925]
[1771895924579,0.45973051,76.944,76.875,0.46609737]
[1771895924580,13.45629358,76.944,76.9,39.74325925]
[1771895924773,39.74325925,76.94,76.9,39.74325925]
[1771895924979,40.20298976,76.94,76.875,0.46609737]
[1771895925160,39.74325925,76.92,76.88,39.74325925]
[1771895925370,0.45973051,76.929,76.871,45.53082436]
[1771895925584,0.45973051,76.979,76.92,39.74325925]
[1771895925787,0.45973051,76.979,76.911,0.46609737]
[1771895925989,0.45973051,76.979,76.894,5.36086188]
[1771895925990,39.74325925,77.0,76.96,39.74325925]
[1771895926287,12.98442633,77.016,76.98,39.74325925]
[1771895926489,0.45973051,77.022,76.951,45.48348949]
[1771895926490,12.98482074,77.013,76.961,0.46609737]
[1771895926785,0.45973051,76.979,76.93,39.74325925]
[1771895927085,39.74325925,76.96,76.917,32.50237686]
[1771895927289,39.74325925,76.99,76.95,39.74325925]
[1771895927476,39.74325925,76.99,76.94,39.74325925]
[1771895927477,0.45973051,76.989,76.94,39.74325925]
[1771895927663,0.45973051,76.989,76.918,0.46609737]
[1771895927869,0.45973051,76.989,76.912,286.04118988]
[1771895927870,39.74325925,76.96,76.912,13.00187226]
[1771895928195,39.74325925,76.95,76.882,13.0069457]
[1771895928400,39.74325925,76.94,76.89,39.74325925]
[1771895928688,39.74325925,76.94,76.883,0.48310132]
[1771895928689,39.74325925,76.92,76.882,13.0069457]
[1771895928879,39.74325925,76.9,76.851,13.01219242]
[1771895929188,39.74325925,76.88,76.851,13.01219242]
[1771895929371,39.74325925,76.88,76.831,13.01557964]
[1771895929568,0.47344385,76.849,76.81,39.74325925]
[1771895929767,39.74325925,76.88,76.83,39.74325925]
[1771895929974,39.74325925,76.87,76.82,39.74325925]
[1771895930175,0.47344385,76.879,76.83,39.74325925]
[1771895930375,0.47344385,76.879,76.831,45.55452876]
[1771895930592,0.47344385,76.879,76.815,0.48310132]
[1771895930593,39.74325925,76.84,76.781,52.0956131]
[1771895930794,39.74325925,76.86,76.81,39.74325925]
[1771895931172,0.47344385,76.839,76.79,39.74325925]
[1771895931373,201.6181482,76.878,76.787,13.02303775]
[1771895931374,39.74325925,76.82,76.787,13.02303775]
[1771895931599,0.47344385,76.877,76.79,39.74325925]
[1771895931903,39.74325925,76.83,76.787,13.02303775]
[1771895932293,0.47344385,76.839,76.791,45.57825786]
[1771895932479,39.74325925,76.84,76.791,45.57825786]
[1771895932480,13.01439391,76.838,76.791,13.02235939]
[1771895932678,0.47344385,76.829,76.784,13.02349573]
[1771895932878,0.47344385,76.809,76.762,13.02716365]
[1771895933093,149.66553004,76.838,76.762,13.02716365]
[1771895933094,0.47344385,76.837,76.78,39.74325925]
[1771895933404,0.47344385,76.829,76.78,39.74325925]
[1771895933693,0.47344385,76.849,76.8,39.74325925]
[1771895933875,39.74325925,76.84,76.78,0.48310132]
[1771895934077,39.74325925,76.84,76.8,39.74325925]
[1771895934294,39.74325925,76.84,76.78,0.48310132]
[1771895934295,39.74325925,76.84,76.79,39.74325925]
[1771895934621,13.01270039,76.848,76.791,45.57825786]
[1771895934907,39.74325925,76.86,76.81,39.74325925]
[1771895935398,39.74325925,76.84,76.791,13.02235939]
[1771895935697,39.74325925,76.84,76.79,39.74325925]
[1771895935899,39.74325925,76.83,76.79,39.74325925]
[1771895936097,39.74325925,76.86,76.81,39.74325925]
[1771895936397,39.74325925,76.83,76.766,0.48310132]
[1771895936695,0.47344385,76.847,76.81,39.74325925]
[1771895936901,39.74325925,76.83,76.79,39.74325925]
[1771895937285,0.47344385,76.829,76.78,39.74325925]
[1771895937480,149.62074393,76.861,76.79,39.74325925]
[1771895937481,39.74325925,76.84,76.79,39.74325925]
[1771895937684,39.74325925,76.85,76.801,0.48310132]
[1771895937881,39.74325925,76.86,76.811,0.48310132]
[1771895938075,39.74325925,76.85,76.777,5.36086188]
[1771895938292,5.36086188,76.926,76.821,0.48310132]
[1771895938496,12.99788476,76.936,76.89,39.74325925]
[1771895938697,149.39139244,76.979,76.891,0.48310132]
[1771895938900,39.74325925,76.96,76.91,39.74325925]
[1771895939195,39.74325925,76.93,76.884,0.48310132]
[1771895939379,39.74325925,76.94,76.89,39.74325925]
[1771895939701,39.74325925,76.94,76.881,0.76742446]
[1771895939702,39.74325925,76.95,76.9,39.74325925]
[1771895940001,39.74325925,76.95,76.882,0.28432314]
[1771895940002,0.47344385,76.959,76.91,39.74325925]
[1771895940181,0.47344385,76.975,76.92,39.74325925]
[1771895940378,39.74325925,76.96,76.91,39.74325925]
[1771895940584,39.74325925,76.97,76.93,39.74325925]
[1771895940777,51.94105948,77.011,76.93,39.74325925]
[1771895940778,0.47344385,76.991,76.93,39.74325925]
[1771895940978,0.47344385,77.007,76.96,39.74325925]
[1771895941181,18.28921338,77.014,76.97,39.74325925]
[1771895941388,39.74325925,77.0,76.95,39.74325925]
[1771895941600,39.74325925,77.0,76.569,47.00938107]
[1771895941601,39.74325925,76.98,76.916,5.64518502]
[1771895941811,0.47344385,76.969,76.913,0.48310132]
[1771895941983,0.47344385,76.987,76.902,0.48310132]
[1771895942500,29.60042157,76.94,76.904,0.48310132]
[1771895942712,3.69383402,76.983,76.904,0.48310132]
[1771895942713,29.60042157,76.95,76.904,0.48310132]
[1771895942884,29.60042157,76.97,76.921,0.48310132]
[1771895943088,29.60042157,76.97,76.939,0.48310132]
[1771895943304,29.60042157,77.01,76.96,29.60042157]
[1771895943602,29.60042157,77.03,76.955,3.69383402]
[1771895943914,29.60042157,77.03,76.981,0.48310132]
[1771895944284,29.60042157,77.01,76.962,0.48310132]
[1771895944602,0.47344385,77.009,76.956,0.48310132]
[1771895944803,29.28760738,76.99,76.951,32.48820678]
[1771895944997,29.28760738,77.06,76.984,0.48310132]
[1771895945182,0.47344385,77.075,77.011,0.28432314]
[1771895945384,29.28760738,77.04,77.009,0.48310132]
[1771895945586,29.28760738,77.04,76.666,0.4]
[1771895945587,0.47344385,77.054,76.991,0.48310132]
[1771895945779,29.28760738,77.03,76.991,0.48310132]
[1771895945991,29.28760738,77.03,76.98,29.28760738]
[1771895946200,29.28760738,77.03,76.986,0.48310132]
[1771895946585,13.4508285,77.058,77.01,29.28760738]
[1771895946786,29.28760738,77.04,76.987,45.46222088]
[1771895947008,29.28760738,77.07,77.013,0.48310132]
[1771895947185,29.28760738,77.05,77.001,0.48310132]
[1771895947384,29.28760738,77.06,77.011,0.48310132]
[1771895947593,29.28760738,77.04,76.995,0.48310132]
[1771895947888,29.28760738,77.03,76.987,45.46222088]
[1771895948399,29.28760738,77.01,76.987,12.98920596]
[1771895948590,29.28760738,77.02,76.97,29.28760738]
[1771895948780,0.47344385,77.009,76.962,12.99342532]
[1771895948981,29.28760738,77.0,76.962,13.47652664]
[1771895949190,0.47344385,77.021,76.962,162.90091788]
[1771895949499,29.28760738,77.02,76.971,0.48310132]
[1771895949690,0.47344385,77.021,76.971,0.48310132]
[1771895949691,29.28760738,77.01,76.971,0.48310132]
[1771895949893,29.28760738,77.0,76.962,45.47698863]
[1771895950099,29.28760738,76.98,76.935,0.48310132]
[1771895950492,45.44097216,77.023,76.936,45.49235727]
[1771895950493,29.28760738,76.97,76.936,45.49235727]
[1771895950808,0.47344385,77.004,76.936,149.47488819]
[1771895951006,0.47344385,77.004,76.936,45.49235727]
[1771895951207,3.69383402,77.054,76.936,201.46615365]
[1771895951506,29.28760738,77.0,76.95,29.28760738]
[1771895951703,29.28760738,76.99,76.941,0.28432314]
[1771895951902,29.28760738,76.98,76.936,45.49235727]
[1771895952205,29.28760738,76.97,76.936,45.49235727]
[1771895952581,0.47344385,77.022,76.94,29.28760738]
[1771895952792,29.28760738,77.02,76.971,0.48310132]
[1771895953189,0.47344385,77.045,76.975,0.48310132]
[1771895953391,29.28760738,77.04,76.995,0.28432314]
[1771895953594,29.28760738,77.04,76.996,0.48310132]
[1771895954014,29.28760738,77.03,76.98,29.28760738]
[1771895954201,29.28760738,77.02,76.983,0.28432314]
[1771895954413,29.28760738,77.02,76.982,0.48310132]
[1771895954606,29.28760738,77.01,76.983,12.98988088]
[1771895954915,29.28760738,77.01,76.971,12.99190604]
[1771895955163,29.28760738,76.98,76.97,6.09097308]
[1771895955410,12.98258481,77.027,76.97,6.09097308]
[1771895955411,0.47344385,77.014,76.97,6.09097308]
[1771895955594,29.28760738,77.0,76.97,19.08291062]
[1771895955791,29.28760738,76.98,76.97,4.79392277]
[1771895956307,45.43873654,77.027,76.97,4.79392277]
[1771895956518,51.90769366,77.06,76.973,0.63524708]
[1771895956686,29.28760738,77.0,76.973,0.63524708]
[1771895956888,29.28760738,77.02,76.973,0.63524708]
[1771895957104,29.28760738,77.0,76.973,0.63524708]
[1771895957312,29.28760738,76.99,76.97,4.79392277]
[1771895957490,29.28760738,76.98,76.97,4.76142004]
[1771895957694,29.28760738,76.98,76.97,1.79925561]
[1771895957896,29.28760738,76.98,76.97,1e-08]
[1771895958098,29.28760738,76.98,76.925,0.66798327]
[1771895958309,29.28760738,76.96,76.925,0.66798327]
[1771895958719,29.28760738,76.96,76.927,0.66798327]
[1771895959109,32.47465916,76.984,76.926,45.49827105]
[1771895959110,32.45910153,77.02,76.929,0.66798327]
[1771895959310,29.28760738,76.99,76.951,0.66798327]
[1771895959820,29.28760738,76.98,76.951,0.66798327]
[1771895960022,29.28760738,76.99,76.951,0.66798327]
[1771895960234,29.28760738,76.98,76.951,0.66798327]
[1771895960526,29.28760738,76.97,76.931,0.66798327]
[1771895960732,3.69383402,77.027,76.92,29.38760738]
[1771895960733,29.28760738,76.99,76.941,0.66798327]
[1771895961115,29.28760738,77.01,76.961,0.66798327]
[1771895961510,29.28760738,77.0,76.961,0.66798327]
[1771895961731,29.28760738,76.98,76.941,0.66798327]
[1771895962034,29.28760738,77.0,76.951,0.66798327]
[1771895962331,45.44569239,77.015,76.96,29.28760738]
[1771895962332,29.28760738,77.01,76.96,29.28760738]
[1771895962534,29.28760738,77.01,76.971,0.66798327]
[1771895962726,12.9854952,77.009,76.972,12.99173725]
[1771895962919,29.28760738,77.0,76.956,0.66798327]
[1771895963315,29.28760738,76.99,76.956,0.66798327]
[1771895963728,29.28760738,76.98,76.956,0.66798327]
[1771895964037,29.28760738,76.97,76.925,0.66798327]
[1771895964330,29.28760738,77.0,76.951,0.66798327]
[1771895964724,29.28760738,77.01,76.971,0.66798327]
[1771895964925,0.05627618,77.04,76.97,29.28760738]
[1771895964926,29.28760738,77.02,76.973,0.66798327]
[1771895965123,29.28760738,77.0,76.973,0.66798327]
[1771895965330,29.28760738,77.01,76.973,0.66798327]
[1771895965839,29.28760738,77.02,76.981,0.66798327]
[1771895966136,29.28760738,77.03,76.991,0.66798327]
[1771895966320,12.98144979,77.033,76.991,0.66798327]
[1771895966520,29.28760738,77.03,76.991,0.66798327]
[1771895966713,12.98144979,77.033,76.991,0.66798327]
[1771895966714,29.28760738,77.02,76.991,0.66798327]
[1771895966918,29.28760738,77.02,76.99,12.98863839]
[1771895967212,12.98380918,77.019,76.98,29.95559065]
[1771895967421,29.28760738,77.03,76.981,0.66798327]
[1771895967624,29.28760738,77.04,77.001,0.66798327]
[1771895968120,29.28760738,77.05,77.01,29.28760738]
[1771895968336,29.28760738,77.04,77.01,0.66798327]
[1771895968640,29.28760738,77.04,76.992,0.66798327]
[1771895968837,29.28760738,77.04,77.0,29.28760738]
[1771895969145,29.28760738,77.06,77.021,0.66798327]
[1771895969341,29.28760738,77.05,77.021,0.66798327]
[1771895969532,29.28760738,77.04,77.006,0.66798327]
[1771895969718,29.28760738,77.04,76.975,51.96456201]
[1771895969719,29.28760738,77.02,76.941,64.98485852]
[1771895969921,29.28760738,77.0,76.961,0.66798327]
[1771895970216,29.28760738,76.99,76.961,0.66798327]
[1771895970638,29.28760738,76.97,76.944,0.66798327]
[1771895970842,29.28760738,77.04,76.931,12.99866113]
[1771895970843,29.28760738,76.96,76.931,12.99866113]
[1771895971141,29.28760738,76.96,76.93,0.66798327]
[1771895971438,29.28760738,76.97,76.93,29.28760738]
[1771895971620,29.28760738,76.97,76.931,0.66798327]
[1771895972039,45.45100381,77.006,76.921,13.000351]
[1771895972040,29.28760738,76.95,76.921,13.000351]
[1771895972338,29.28760738,76.95,76.884,69.02321524]
[1771895972339,29.28760738,76.93,76.884,16.99716251]
[1771895972519,29.28760738,76.91,76.885,13.00643818]
[1771895972722,409.05903433,77.006,76.827,13.0162573]
[1771895972723,29.28760738,76.9,76.827,13.0162573]
[1771895972918,0.57769418,76.896,76.83,29.28760738]
[1771895973134,29.28760738,76.89,76.84,29.28760738]
[1771895973341,29.28760738,76.9,76.85,29.28760738]
[1771895973540,29.28760738,76.88,76.84,29.28760738]
[1771895973754,29.28760738,76.86,76.827,45.55690056]
[1771895974037,3.69383402,76.906,76.827,45.55690056]
[1771895974038,29.28760738,76.88,76.83,29.28760738]
[1771895974343,29.28760738,76.88,76.841,0.64218365]
[1771895974524,29.28760738,76.86,76.827,13.0162573]
[1771895974719,29.28760738,76.87,76.831,0.64218365]
[1771895974918,13.00914542,76.869,76.832,13.01541024]
[1771895975115,29.28760738,76.85,76.817,13.6601354]
[1771895975320,29.28760738,76.86,76.817,13.6601354]
[1771895975617,45.53200899,76.869,76.817,13.6601354]
[1771895975618,13.00914542,76.869,76.817,13.6601354]
[1771895975824,0.58447269,76.879,76.806,0.64218365]
[1771895976035,0.58447269,76.819,76.757,13.02812772]
[1771895976227,29.28760738,76.79,76.757,13.02812772]
[1771895976425,0.57878296,76.884,76.771,0.64218365]
[1771895976644,29.28760738,76.82,76.771,0.64218365]
[1771895976825,29.28760738,76.81,76.771,0.64218365]
[1771895977025,29.28760738,76.8,76.773,0.64218365]
[1771895977325,29.44190439,76.78,76.739,0.64218365]
[1771895977667,29.44190439,76.79,76.751,0.64218365]
[1771895977941,29.44190439,76.78,76.741,0.64218365]
[1771895978140,29.44190439,76.78,76.746,0.64218365]
[1771895978451,45.56757671,76.809,76.761,0.64218365]
[1771895978452,29.44190439,76.8,76.761,0.64218365]
[1771895978942,29.44190439,76.79,76.751,0.64218365]
[1771895979146,13.0199341,76.806,76.761,0.64218365]
[1771895979322,29.44190439,76.81,76.762,0.14216157]
[1771895979522,29.44190439,76.81,76.771,0.64218365]
[1771895979829,0.50490413,76.883,76.806,0.64218365]
[1771895980139,29.44190439,76.86,76.823,0.64218365]
[1771895980339,0.47132348,76.902,76.82,29.44190439]
[1771895980536,29.44190439,76.85,76.811,0.64218365]
[1771895981126,29.44190439,76.85,76.82,29.44190439]
[1771895981452,29.44190439,76.85,76.813,0.64218365]
[1771895981823,29.44190439,76.88,76.841,0.64218365]
[1771895982128,29.44190439,76.89,76.851,0.64218365]
[1771895982526,29.44190439,76.88,76.84,29.44190439]
[1771895982726,29.44190439,76.85,76.82,29.44190439]
[1771895982916,29.44190439,76.86,76.82,29.44190439]
[1771895983123,13.01083802,76.859,76.82,42.45934533]
[1771895983327,29.44190439,76.85,76.82,42.45934533]
[1771895983525,29.44190439,76.83,76.78,0.64218365]
[1771895983727,29.44190439,76.8,76.761,0.64218365]
[1771895983931,29.44190439,76.8,76.77,29.44190439]
[1771895984142,29.44190439,76.8,76.77,0.64218365]
[1771895984325,318.76553167,76.859,76.77,0.64218365]
[1771895984326,0.34041921,76.847,76.77,0.64218365]
[1771895984531,29.44190439,76.81,76.781,0.64218365]
[1771895984726,29.44190439,76.8,76.766,0.64218365]
[1771895984928,29.44190439,76.79,76.751,0.64218365]
[1771895985248,29.44190439,76.78,76.741,0.64218365]
[1771895985543,29.44190439,76.78,76.737,13.03152325]
[1771895985544,29.44190439,76.79,76.751,0.64218365]
[1771895985731,13.01879914,76.812,76.761,0.64218365]
[1771895985929,13.01879914,76.812,76.77,29.44190439]
[1771895986124,29.44190439,76.8,76.761,0.64218365]
[1771895986325,29.44190439,76.8,76.737,149.8625174]
[1771895986326,0.28719166,76.815,76.751,0.64218365]
[1771895986526,13.01750423,76.82,76.751,0.64218365]
[1771895986527,29.44190439,76.78,76.751,0.64218365]
[1771895986726,97.63088615,76.82,76.77,29.44190439]
[1771895986727,45.56111266,76.82,76.77,29.44190439]
[1771895987032,29.44190439,76.83,76.79,29.44190439]
[1771895987242,29.44190439,76.83,76.8,29.44190439]
[1771895987549,29.44190439,76.83,76.79,29.44190439]
[1771895987749,29.44190439,76.81,76.781,13.02405543]
[1771895987950,29.44190439,76.83,76.79,29.44190439]
[1771895988450,52.0404618,76.864,76.781,45.584194]
[1771895988451,29.44190439,76.86,76.82,29.44190439]
[1771895988646,29.44190439,76.87,76.83,29.44190439]
[1771895989147,29.44190439,76.89,76.85,29.44190439]
[1771895989480,0.48009141,76.894,76.83,29.44190439]
[1771895989755,29.44190439,76.86,76.82,29.44190439]
[1771895990057,0.48009141,76.879,76.83,29.44190439]
[1771895990356,29.44190439,76.87,76.83,29.44190439]
[1771895990552,29.44190439,76.88,76.84,29.44190439]
[1771895990733,29.44190439,76.86,76.82,29.44190439]
[1771895991247,0.48009141,76.869,76.81,29.44190439]
[1771895991248,29.44190439,76.84,76.81,29.44190439]
[1771895991555,29.44190439,76.85,76.811,0.50982097]
[1771895991754,13.01083802,76.859,76.82,25.64768662]
[1771895991942,29.44190439,76.84,76.8,29.44190439]